[Event "January 2 Early 2024"]
[Site "https://www.chess.com"]
[Date "2024.01.02"]
[Round "7"]
[White "Wagner, Dennis"]
[Black "Baskakov, Egor"]
[Result "0-1"]
[Board "24"]
[TimeControl "180+1"]
[WhiteFideId "24650684"]
[BlackFideId "24197866"]
[WhiteElo "2756"]
[BlackElo "2937"]
[WhiteTeam "GER"]
[BlackTeam "RUS"]
[WhiteClock "0:00:03"]
[BlackClock "0:00:25"]

1. c4 {[%clk 0:03:00]}  Nf6 {[%clk 0:02:59]} 2. Nc3 {[%clk 0:02:57]}  e6 {[%clk 0:02:59]} 3. d4 {[%clk 0:02:54]}  d5 {[%clk 0:02:59]} 4. Nf3 {[%clk 0:02:53]}  Ne4 {[%clk 0:02:59]} 5. Qc2 {[%clk 0:02:53]}  f5 {[%clk 0:02:59]} 6. Bf4 {[%clk 0:02:49]}  c6 {[%clk 0:02:59]} 7. Rd1 {[%clk 0:02:49]}  Be7 {[%clk 0:02:59]} 8. h4 {[%clk 0:02:47]}  O-O {[%clk 0:03:00]} 9. e3 {[%clk 0:02:46]}  Bd7 {[%clk 0:03:00]} 10. Be2 {[%clk 0:02:44]}  Be8 {[%clk 0:03:01]} 11. Ne5 {[%clk 0:02:43]}  Nd7 {[%clk 0:03:01]} 12. Nxd7 {[%clk 0:02:40]}  Qxd7 {[%clk 0:03:02]} 13. h5 {[%clk 0:02:38]}  Bd6 {[%clk 0:03:01]} 14. Bxd6 {[%clk 0:02:32]}  Qxd6 {[%clk 0:03:02]} 15. g3 {[%clk 0:02:21]}  Bd7 {[%clk 0:02:57]} 16. Kf1 {[%clk 0:02:21]}  Rf6 {[%clk 0:02:50]} 17. Kg2 {[%clk 0:02:20]}  Raf8 {[%clk 0:02:51]} 18. Rh4 {[%clk 0:02:19]}  Be8 {[%clk 0:02:43]} 19. a3 {[%clk 0:02:18]}  Qe7 {[%clk 0:02:43]} 20. Bd3 {[%clk 0:02:16]}  Rh6 {[%clk 0:02:43]} 21. Rdh1 {[%clk 0:02:14]}  Qg5 {[%clk 0:02:41]} 22. Be2 {[%clk 0:02:04]}  Kh8 {[%clk 0:02:28]} 23. Bf3 {[%clk 0:02:04]}  Rg8 {[%clk 0:02:27]} 24. Ne2 {[%clk 0:02:03]}  Qe7 {[%clk 0:02:24]} 25. Nf4 {[%clk 0:02:00]}  Rf8 {[%clk 0:02:13]} 26. Rc1 {[%clk 0:01:48]}  Kg8 {[%clk 0:02:12]} 27. Rhh1 {[%clk 0:01:32]}  g5 {[%clk 0:02:08]} 28. hxg6 {[%clk 0:01:31]}  Rxh1 {[%clk 0:02:09]} 29. Rxh1 {[%clk 0:01:28]}  hxg6 {[%clk 0:02:09]} 30. Qc1 {[%clk 0:01:10]}  g5 {[%clk 0:02:07]} 31. Nd3 {[%clk 0:01:10]}  Qf6 {[%clk 0:01:55]} 32. Rh2 {[%clk 0:01:07]}  Bg6 {[%clk 0:01:51]} 33. Ne5 {[%clk 0:01:06]}  Qg7 {[%clk 0:01:39]} 34. Qh1 {[%clk 0:01:03]}  Rf6 {[%clk 0:01:31]} 35. Bxe4 {[%clk 0:00:47]}  dxe4 {[%clk 0:01:29]} 36. Rh6 {[%clk 0:00:39]}  f4 {[%clk 0:01:29]} 37. Kg1 {[%clk 0:00:18]}  c5 {[%clk 0:01:19]} 38. Ng4 {[%clk 0:00:09]}  fxe3 {[%clk 0:01:06]} 39. Nxf6+ {[%clk 0:00:07]}  Qxf6 {[%clk 0:01:06]} 40. fxe3 {[%clk 0:00:06]}  Kg7 {[%clk 0:01:05]} 41. Rh2 {[%clk 0:00:04]}  cxd4 {[%clk 0:01:01]} 42. Rf2 {[%clk 0:00:04]}  Qe5 {[%clk 0:01:01]} 43. Qg2 {[%clk 0:00:02]}  dxe3 {[%clk 0:00:56]} 44. Re2 {[%clk 0:00:03]}  Qd4 {[%clk 0:00:57]} 45. Kh2 {[%clk 0:00:03]}  Qd3 {[%clk 0:00:43]} 46. Re1 {[%clk 0:00:02]}  Bh5 {[%clk 0:00:27]} 47. Qg1 {[%clk 0:00:01]}  Bf3 {[%clk 0:00:23]} 48. Qxe3 {[%clk 0:00:01]}  Qc2+ {[%clk 0:00:23]} 49. Re2 {[%clk 0:00:01]}  Qxe2+ {[%clk 0:00:23]} 50. Qxe2 {[%clk 0:00:01]}  Bxe2 {[%clk 0:00:24]} 51. Kg2 {[%clk 0:00:02]}  Bxc4 {[%clk 0:00:24]} 52. Kf2 {[%clk 0:00:02]}  Kf6 {[%clk 0:00:25]} 53. Ke3 {[%clk 0:00:03]}  Ke5 {[%clk 0:00:25]} 54. g4 {[%clk 0:00:03]}  Bf1 {[%clk 0:00:25]} 0-1

[Event "January 2 Early 2024"]
[Site "https://www.chess.com"]
[Date "2024.01.02"]
[Round "7"]
[White "Donchenko, Alexander"]
[Black "Oganian, Miran"]
[Result "1-0"]
[Board "25"]
[TimeControl "180+1"]
[WhiteFideId "24603295"]
[BlackFideId "4122488"]
[WhiteElo "2930"]
[BlackElo "2750"]
[WhiteTeam "GER"]
[BlackTeam "RUS"]
[WhiteClock "0:01:13"]
[BlackClock "0:00:00"]

1. Nf3 {[%clk 0:03:00]}  d5 {[%clk 0:02:59]} 2. g3 {[%clk 0:03:01]}  g6 {[%clk 0:02:56]} 3. Bg2 {[%clk 0:03:01]}  Bg7 {[%clk 0:02:56]} 4. d4 {[%clk 0:03:02]}  Nf6 {[%clk 0:02:57]} 5. O-O {[%clk 0:03:03]}  O-O {[%clk 0:02:57]} 6. c4 {[%clk 0:03:04]}  dxc4 {[%clk 0:02:57]} 7. Na3 {[%clk 0:03:03]}  c3 {[%clk 0:02:58]} 8. bxc3 {[%clk 0:03:04]}  c5 {[%clk 0:02:58]} 9. Ne5 {[%clk 0:03:05]}  Ng4 {[%clk 0:02:56]} 10. Nxg4 {[%clk 0:03:04]}  Bxg4 {[%clk 0:02:56]} 11. Bxb7 {[%clk 0:03:04]}  Nd7 {[%clk 0:02:56]} 12. Nc4 {[%clk 0:02:56]}  Qc7 {[%clk 0:02:34]} 13. Bxa8 {[%clk 0:02:54]}  Rxa8 {[%clk 0:02:34]} 14. Bf4 {[%clk 0:02:54]}  Qb7 {[%clk 0:02:07]} 15. d5 {[%clk 0:02:54]}  Bxc3 {[%clk 0:02:03]} 16. Rb1 {[%clk 0:02:54]}  Qa6 {[%clk 0:02:03]} 17. Qd3 {[%clk 0:02:52]}  Bg7 {[%clk 0:01:56]} 18. f3 {[%clk 0:02:52]}  Bh3 {[%clk 0:01:55]} 19. Rfc1 {[%clk 0:02:51]}  h6 {[%clk 0:01:30]} 20. g4 {[%clk 0:02:48]}  Nb6 {[%clk 0:01:10]} 21. Kf2 {[%clk 0:02:32]}  g5 {[%clk 0:00:28]} 22. Be3 {[%clk 0:02:28]}  Nxc4 {[%clk 0:00:28]} 23. Qxc4 {[%clk 0:02:23]}  Qd6 {[%clk 0:00:28]} 24. Kg1 {[%clk 0:02:17]}  Be5 {[%clk 0:00:26]} 25. Kh1 {[%clk 0:02:04]}  Bxh2 {[%clk 0:00:25]} 26. f4 {[%clk 0:02:04]}  Bxf4 {[%clk 0:00:15]} 27. Bxf4 {[%clk 0:02:05]}  gxf4 {[%clk 0:00:16]} 28. Rg1 {[%clk 0:01:37]}  Qe5 {[%clk 0:00:14]} 29. Rb3 {[%clk 0:01:34]}  Rd8 {[%clk 0:00:03]} 30. Rxh3 {[%clk 0:01:33]}  Rxd5 {[%clk 0:00:03]} 31. Rh2 {[%clk 0:01:18]}  Rd4 {[%clk 0:00:03]} 32. Qc2 {[%clk 0:01:18]}  Qd5+ {[%clk 0:00:04]} 33. Rhg2 {[%clk 0:01:18]}  c4 {[%clk 0:00:04]} 34. Qf5 {[%clk 0:01:17]}  Qd6 {[%clk 0:00:03]} 35. g5 {[%clk 0:01:17]}  Kf8 {[%clk 0:00:02]} 36. gxh6 {[%clk 0:01:15]}  Qxh6+ {[%clk 0:00:02]} 37. Rh2 {[%clk 0:01:16]}  Qf6 {[%clk 0:00:00]} 38. Qc8+ {[%clk 0:01:13]} 1-0

[Event "January 2 Early 2024"]
[Site "https://www.chess.com"]
[Date "2024.01.02"]
[Round "7"]
[White "Papasimakopoulos, Alexandros"]
[Black "Gokerkan, Cem Kaan"]
[Result "0-1"]
[Board "29"]
[TimeControl "180+1"]
[WhiteFideId "4244125"]
[BlackFideId "6336760"]
[WhiteElo "2655"]
[BlackElo "2839"]
[WhiteTeam "GRE"]
[BlackTeam "TUR"]
[WhiteClock "0:00:30"]
[BlackClock "0:00:17"]

1. d4 {[%clk 0:03:00]}  Nf6 {[%clk 0:02:59]} 2. c4 {[%clk 0:02:59]}  g6 {[%clk 0:03:00]} 3. Nc3 {[%clk 0:02:59]}  Bg7 {[%clk 0:03:00]} 4. Bg5 {[%clk 0:03:00]}  O-O {[%clk 0:03:00]} 5. e3 {[%clk 0:03:00]}  c5 {[%clk 0:02:59]} 6. Nf3 {[%clk 0:03:00]}  cxd4 {[%clk 0:02:59]} 7. Nxd4 {[%clk 0:02:59]}  Qa5 {[%clk 0:02:42]} 8. Bxf6 {[%clk 0:02:59]}  Bxf6 {[%clk 0:02:43]} 9. Be2 {[%clk 0:03:00]}  Nc6 {[%clk 0:02:37]} 10. O-O {[%clk 0:02:59]}  d6 {[%clk 0:02:27]} 11. Nd5 {[%clk 0:02:57]}  Bxd4 {[%clk 0:02:14]} 12. exd4 {[%clk 0:02:55]}  e5 {[%clk 0:02:09]} 13. dxe5 {[%clk 0:02:48]}  dxe5 {[%clk 0:02:10]} 14. Re1 {[%clk 0:02:22]}  Be6 {[%clk 0:02:08]} 15. Qb3 {[%clk 0:02:08]}  Nd4 {[%clk 0:01:52]} 16. Qxb7 {[%clk 0:01:34]}  Bxd5 {[%clk 0:01:50]} 17. Qxd5 {[%clk 0:01:33]}  Qxd5 {[%clk 0:01:49]} 18. cxd5 {[%clk 0:01:34]}  Nc2 {[%clk 0:01:49]} 19. b3 {[%clk 0:01:29]}  Rad8 {[%clk 0:01:38]} 20. Bc4 {[%clk 0:01:29]}  f5 {[%clk 0:01:34]} 21. Kf1 {[%clk 0:01:26]}  e4 {[%clk 0:01:30]} 22. Rad1 {[%clk 0:01:24]}  Nxe1 {[%clk 0:01:30]} 23. Kxe1 {[%clk 0:01:25]}  Rd6 {[%clk 0:01:25]} 24. Kd2 {[%clk 0:01:25]}  Kf7 {[%clk 0:01:24]} 25. Ke3 {[%clk 0:01:26]}  Kf6 {[%clk 0:01:23]} 26. Kd4 {[%clk 0:01:26]}  h5 {[%clk 0:01:16]} 27. b4 {[%clk 0:01:17]}  h4 {[%clk 0:01:14]} 28. a4 {[%clk 0:01:16]}  g5 {[%clk 0:01:05]} 29. Bb5 {[%clk 0:01:14]}  Rxd5+ {[%clk 0:00:53]} 30. Kxd5 {[%clk 0:01:13]}  Rd8+ {[%clk 0:00:53]} 31. Kc6 {[%clk 0:01:11]}  Rxd1 {[%clk 0:00:54]} 32. Kb7 {[%clk 0:01:10]}  Rd4 {[%clk 0:00:45]} 33. Kxa7 {[%clk 0:01:10]}  Rxb4 {[%clk 0:00:45]} 34. Kb6 {[%clk 0:01:11]}  f4 {[%clk 0:00:33]} 35. a5 {[%clk 0:00:50]}  h3 {[%clk 0:00:23]} 36. gxh3 {[%clk 0:00:49]}  e3 {[%clk 0:00:23]} 37. fxe3 {[%clk 0:00:39]}  f3 {[%clk 0:00:23]} 38. a6 {[%clk 0:00:32]}  f2 {[%clk 0:00:23]} 39. a7 {[%clk 0:00:33]}  f1=Q {[%clk 0:00:21]} 40. a8=Q {[%clk 0:00:32]}  Qxb5+ {[%clk 0:00:21]} 41. Kc7 {[%clk 0:00:32]}  Qb6+ {[%clk 0:00:16]} 42. Kd7 {[%clk 0:00:30]}  Qb7+ {[%clk 0:00:17]} 0-1

[Event "January 2 Early 2024"]
[Site "https://www.chess.com"]
[Date "2024.01.02"]
[Round "7"]
[White "Vlassov, Nikolai"]
[Black "Vokhidov, Shamsiddin"]
[Result "0-1"]
[Board "33"]
[TimeControl "180+1"]
[WhiteFideId "4103360"]
[BlackFideId "14204223"]
[WhiteElo "2672"]
[BlackElo "2972"]
[WhiteTeam "FID"]
[BlackTeam "UZB"]
[WhiteClock "0:01:42"]
[BlackClock "0:02:24"]

1. e4 {[%clk 0:03:00]}  c5 {[%clk 0:02:59]} 2. c3 {[%clk 0:03:00]}  e6 {[%clk 0:03:00]} 3. d4 {[%clk 0:03:00]}  d5 {[%clk 0:03:01]} 4. e5 {[%clk 0:03:00]}  Nc6 {[%clk 0:03:01]} 5. Nf3 {[%clk 0:03:00]}  Nge7 {[%clk 0:03:01]} 6. a3 {[%clk 0:02:48]}  Ng6 {[%clk 0:02:59]} 7. b4 {[%clk 0:02:47]}  cxd4 {[%clk 0:02:59]} 8. cxd4 {[%clk 0:02:48]}  f6 {[%clk 0:02:59]} 9. Bd3 {[%clk 0:02:39]}  fxe5 {[%clk 0:02:59]} 10. Bxg6+ {[%clk 0:02:39]}  hxg6 {[%clk 0:02:59]} 11. dxe5 {[%clk 0:02:39]}  Bd7 {[%clk 0:02:52]} 12. Bg5 {[%clk 0:02:29]}  Be7 {[%clk 0:02:49]} 13. Qd3 {[%clk 0:02:24]}  O-O {[%clk 0:02:41]} 14. Qxg6 {[%clk 0:02:19]}  Rxf3 {[%clk 0:02:39]} 15. gxf3 {[%clk 0:02:06]}  Bxg5 {[%clk 0:02:39]} 16. Rg1 {[%clk 0:02:07]}  Nxe5 {[%clk 0:02:39]} 17. Qh5 {[%clk 0:01:59]}  Qf6 {[%clk 0:02:39]} 18. Rg3 {[%clk 0:01:49]}  Nd3+ {[%clk 0:02:29]} 19. Kf1 {[%clk 0:01:48]}  Qxa1 {[%clk 0:02:27]} 20. Qxg5 {[%clk 0:01:46]}  Qxb1+ {[%clk 0:02:27]} 21. Kg2 {[%clk 0:01:46]}  Ne1+ {[%clk 0:02:27]} 22. Kh3 {[%clk 0:01:42]}  Qh7+ {[%clk 0:02:24]} 0-1

[Event "January 2 Early 2024"]
[Site "https://www.chess.com"]
[Date "2024.01.02"]
[Round "7"]
[White "Domingo Nunez, Alejandro"]
[Black "Rasulov, Vugar"]
[Result "0-1"]
[Board "34"]
[TimeControl "180+1"]
[WhiteFideId "22245561"]
[BlackFideId "13402390"]
[WhiteElo "2669"]
[BlackElo "2964"]
[WhiteTeam "ESP"]
[BlackTeam "AZE"]
[WhiteClock "0:00:34"]
[BlackClock "0:01:33"]

1. Nf3 {[%clk 0:03:00]}  Nf6 {[%clk 0:02:59]} 2. g3 {[%clk 0:03:00]}  b6 {[%clk 0:03:00]} 3. Bg2 {[%clk 0:03:00]}  Bb7 {[%clk 0:03:00]} 4. O-O {[%clk 0:03:01]}  g6 {[%clk 0:03:01]} 5. d4 {[%clk 0:02:58]}  Bg7 {[%clk 0:03:01]} 6. c4 {[%clk 0:02:59]}  O-O {[%clk 0:03:01]} 7. d5 {[%clk 0:02:59]}  e6 {[%clk 0:02:59]} 8. Nc3 {[%clk 0:02:59]}  Na6 {[%clk 0:02:56]} 9. e4 {[%clk 0:02:55]}  exd5 {[%clk 0:02:50]} 10. e5 {[%clk 0:02:44]}  Ne4 {[%clk 0:02:45]} 11. Nxd5 {[%clk 0:02:32]}  d6 {[%clk 0:02:45]} 12. Re1 {[%clk 0:02:32]}  c6 {[%clk 0:02:36]} 13. Rxe4 {[%clk 0:01:37]}  cxd5 {[%clk 0:02:36]} 14. Bg5 {[%clk 0:01:38]}  dxe4 {[%clk 0:02:13]} 15. Bxd8 {[%clk 0:01:37]}  exf3 {[%clk 0:02:14]} 16. Be7 {[%clk 0:01:28]}  fxg2 {[%clk 0:02:13]} 17. exd6 {[%clk 0:01:28]}  Rfd8 {[%clk 0:02:09]} 18. Bxd8 {[%clk 0:01:19]}  Rxd8 {[%clk 0:02:10]} 19. d7 {[%clk 0:01:19]}  Nc5 {[%clk 0:02:07]} 20. Qd6 {[%clk 0:01:19]}  Rxd7 {[%clk 0:02:05]} 21. Qb8+ {[%clk 0:01:19]}  Bf8 {[%clk 0:02:06]} 22. Re1 {[%clk 0:01:16]}  Bf3 {[%clk 0:01:43]} 23. b4 {[%clk 0:01:14]}  Ne6 {[%clk 0:01:36]} 24. a4 {[%clk 0:00:34]}  Ng5 {[%clk 0:01:33]} 0-1

[Event "January 2 Early 2024"]
[Site "https://www.chess.com"]
[Date "2024.01.02"]
[Round "7"]
[White "Aravindh, Chithambaram VR."]
[Black "Iskusnyh, Sergei"]
[Result "1-0"]
[Board "36"]
[TimeControl "180+1"]
[WhiteFideId "5072786"]
[BlackFideId "4120027"]
[WhiteElo "2913"]
[BlackElo "2663"]
[WhiteTeam "IND"]
[BlackTeam "RUS"]
[WhiteClock "0:01:04"]
[BlackClock "0:00:00"]

1. b3 {[%clk 0:03:00]}  d5 {[%clk 0:02:58]} 2. Bb2 {[%clk 0:03:01]}  Bf5 {[%clk 0:02:58]} 3. Nf3 {[%clk 0:02:58]}  e6 {[%clk 0:02:58]} 4. d3 {[%clk 0:02:56]}  h6 {[%clk 0:02:54]} 5. Nbd2 {[%clk 0:02:56]}  Nf6 {[%clk 0:02:54]} 6. g3 {[%clk 0:02:52]}  a5 {[%clk 0:02:42]} 7. a3 {[%clk 0:02:50]}  a4 {[%clk 0:02:38]} 8. Bg2 {[%clk 0:02:50]}  axb3 {[%clk 0:02:36]} 9. cxb3 {[%clk 0:02:51]}  Be7 {[%clk 0:02:32]} 10. O-O {[%clk 0:02:52]}  O-O {[%clk 0:02:32]} 11. b4 {[%clk 0:02:46]}  Nbd7 {[%clk 0:02:26]} 12. Ne5 {[%clk 0:02:31]}  Nxe5 {[%clk 0:02:24]} 13. Bxe5 {[%clk 0:02:32]}  Nd7 {[%clk 0:02:11]} 14. Bb2 {[%clk 0:02:32]}  Bf6 {[%clk 0:01:58]} 15. Bxf6 {[%clk 0:02:31]}  Nxf6 {[%clk 0:01:58]} 16. e4 {[%clk 0:02:31]}  Bg6 {[%clk 0:01:56]} 17. Qe2 {[%clk 0:02:25]}  dxe4 {[%clk 0:01:49]} 18. dxe4 {[%clk 0:02:26]}  e5 {[%clk 0:01:49]} 19. Nc4 {[%clk 0:02:22]}  Qe7 {[%clk 0:01:43]} 20. Rfd1 {[%clk 0:02:21]}  Rfd8 {[%clk 0:01:40]} 21. h3 {[%clk 0:02:15]}  Bh5 {[%clk 0:01:37]} 22. Bf3 {[%clk 0:02:01]}  Bxf3 {[%clk 0:01:23]} 23. Qxf3 {[%clk 0:02:01]}  Qe6 {[%clk 0:01:23]} 24. Qe2 {[%clk 0:01:35]}  Qxh3 {[%clk 0:01:18]} 25. Rxd8+ {[%clk 0:01:34]}  Rxd8 {[%clk 0:01:17]} 26. Nxe5 {[%clk 0:01:35]}  Re8 {[%clk 0:01:13]} 27. Nf3 {[%clk 0:01:34]}  Rxe4 {[%clk 0:01:10]} 28. Qd3 {[%clk 0:01:31]}  Qf5 {[%clk 0:01:02]} 29. Rd1 {[%clk 0:01:25]}  g5 {[%clk 0:00:49]} 30. Kg2 {[%clk 0:01:21]}  c6 {[%clk 0:00:41]} 31. Nd2 {[%clk 0:01:07]}  Re5 {[%clk 0:00:38]} 32. Qxf5 {[%clk 0:01:07]}  Rxf5 {[%clk 0:00:38]} 33. Nc4 {[%clk 0:01:08]}  b5 {[%clk 0:00:18]} 34. Ne3 {[%clk 0:01:07]}  Re5 {[%clk 0:00:16]} 35. Rc1 {[%clk 0:01:08]}  Re6 {[%clk 0:00:15]} 36. Nf5 {[%clk 0:01:08]}  Nd5 {[%clk 0:00:13]} 37. Nd4 {[%clk 0:01:07]}  Re4 {[%clk 0:00:11]} 38. Nxc6 {[%clk 0:01:06]}  g4 {[%clk 0:00:11]} 39. Na7 {[%clk 0:01:05]}  Re2 {[%clk 0:00:09]} 40. Nxb5 {[%clk 0:01:06]}  Ra2 {[%clk 0:00:09]} 41. Nc3 {[%clk 0:01:03]}  Nxc3 {[%clk 0:00:06]} 42. Rxc3 {[%clk 0:01:04]}  Kg7 {[%clk 0:00:00]} 43. Rb3 {[%clk 0:01:04]} 1-0

[Event "January 2 Early 2024"]
[Site "https://www.chess.com"]
[Date "2024.01.02"]
[Round "7"]
[White "Timerkhanov, Alexander"]
[Black "Durarbayli, Vasif"]
[Result "0-1"]
[Board "39"]
[TimeControl "180+1"]
[WhiteFideId "24177938"]
[BlackFideId "13402935"]
[WhiteElo "2650"]
[BlackElo "2848"]
[WhiteTeam "RUS"]
[BlackTeam "AZE"]
[WhiteClock "0:00:24"]
[BlackClock "0:00:50"]

1. d4 {[%clk 0:03:00]}  Nf6 {[%clk 0:03:00]} 2. Bg5 {[%clk 0:02:59]}  d5 {[%clk 0:02:59]} 3. Nd2 {[%clk 0:02:58]}  Nbd7 {[%clk 0:02:57]} 4. Ngf3 {[%clk 0:02:56]}  h6 {[%clk 0:02:57]} 5. Bxf6 {[%clk 0:02:52]}  Nxf6 {[%clk 0:02:58]} 6. e3 {[%clk 0:02:53]}  Bf5 {[%clk 0:02:48]} 7. Ne5 {[%clk 0:02:50]}  e6 {[%clk 0:02:47]} 8. g4 {[%clk 0:02:48]}  Bh7 {[%clk 0:02:47]} 9. h4 {[%clk 0:02:48]}  Nd7 {[%clk 0:02:44]} 10. Nxd7 {[%clk 0:02:43]}  Qxd7 {[%clk 0:02:45]} 11. f4 {[%clk 0:02:42]}  c5 {[%clk 0:02:41]} 12. c3 {[%clk 0:02:39]}  c4 {[%clk 0:02:42]} 13. Bg2 {[%clk 0:02:36]}  Be7 {[%clk 0:02:40]} 14. g5 {[%clk 0:02:33]}  Bd3 {[%clk 0:02:37]} 15. Qf3 {[%clk 0:02:21]}  Qb5 {[%clk 0:02:26]} 16. b4 {[%clk 0:02:13]}  Bxb4 {[%clk 0:01:53]} 17. cxb4 {[%clk 0:02:05]}  Qxb4 {[%clk 0:01:54]} 18. Qf2 {[%clk 0:01:34]}  a5 {[%clk 0:01:18]} 19. Bf1 {[%clk 0:01:29]}  Qb2 {[%clk 0:01:14]} 20. Rd1 {[%clk 0:01:26]}  Bc2 {[%clk 0:01:10]} 21. Nb1 {[%clk 0:01:00]}  Qb4+ {[%clk 0:01:03]} 22. Qd2 {[%clk 0:00:50]}  Bxd1 {[%clk 0:01:02]} 23. Qxb4 {[%clk 0:00:44]}  axb4 {[%clk 0:01:02]} 24. Kxd1 {[%clk 0:00:44]}  Rxa2 {[%clk 0:01:02]} 25. gxh6 {[%clk 0:00:38]}  Rxh6 {[%clk 0:00:59]} 26. Be2 {[%clk 0:00:24]}  Rg6 {[%clk 0:00:50]} 0-1

[Event "January 2 Early 2024"]
[Site "https://www.chess.com"]
[Date "2024.01.02"]
[Round "7"]
[White "Cordoba Roa, Angel Gabriel"]
[Black "Finek, Vaclav"]
[Result "1-0"]
[Board "40"]
[TimeControl "180+1"]
[WhiteFideId "3957624"]
[BlackFideId "23718293"]
[WhiteElo "2650"]
[BlackElo "2846"]
[WhiteTeam "COL"]
[BlackTeam "CZE"]
[WhiteClock "0:00:44"]
[BlackClock "0:00:12"]

1. e4 {[%clk 0:02:57]}  c5 {[%clk 0:02:58]} 2. Nf3 {[%clk 0:02:57]}  g6 {[%clk 0:02:57]} 3. d4 {[%clk 0:02:56]}  cxd4 {[%clk 0:02:57]} 4. Nxd4 {[%clk 0:02:56]}  Bg7 {[%clk 0:02:56]} 5. c4 {[%clk 0:02:57]}  Nc6 {[%clk 0:02:53]} 6. Be3 {[%clk 0:02:57]}  Nf6 {[%clk 0:02:51]} 7. Nc3 {[%clk 0:02:57]}  O-O {[%clk 0:02:50]} 8. Be2 {[%clk 0:02:57]}  d6 {[%clk 0:02:51]} 9. h3 {[%clk 0:02:56]}  Bd7 {[%clk 0:02:49]} 10. O-O {[%clk 0:02:56]}  Nxd4 {[%clk 0:02:47]} 11. Bxd4 {[%clk 0:02:57]}  Bc6 {[%clk 0:02:47]} 12. Qc2 {[%clk 0:02:57]}  a5 {[%clk 0:02:45]} 13. Rad1 {[%clk 0:02:43]}  a4 {[%clk 0:02:43]} 14. c5 {[%clk 0:02:43]}  Qa5 {[%clk 0:02:41]} 15. cxd6 {[%clk 0:02:44]}  exd6 {[%clk 0:02:42]} 16. a3 {[%clk 0:02:44]}  Rfe8 {[%clk 0:02:39]} 17. Bf3 {[%clk 0:02:40]}  Re6 {[%clk 0:02:37]} 18. Nd5 {[%clk 0:01:58]}  Bxd5 {[%clk 0:02:09]} 19. exd5 {[%clk 0:01:58]}  Re7 {[%clk 0:01:57]} 20. Bc3 {[%clk 0:01:58]}  Qb5 {[%clk 0:01:52]} 21. Rd4 {[%clk 0:01:44]}  h5 {[%clk 0:01:28]} 22. Rb4 {[%clk 0:01:43]}  Qa6 {[%clk 0:01:28]} 23. Rd1 {[%clk 0:01:40]}  Nd7 {[%clk 0:01:12]} 24. Bxg7 {[%clk 0:01:34]}  Kxg7 {[%clk 0:01:13]} 25. Qc7 {[%clk 0:01:32]}  Rae8 {[%clk 0:01:10]} 26. Qxb7 {[%clk 0:01:25]}  Qa5 {[%clk 0:00:49]} 27. Qc6 {[%clk 0:01:14]}  Ne5 {[%clk 0:00:44]} 28. Qxd6 {[%clk 0:01:14]}  Nxf3+ {[%clk 0:00:39]} 29. gxf3 {[%clk 0:01:15]}  Re1+ {[%clk 0:00:39]} 30. Rxe1 {[%clk 0:01:15]}  Rxe1+ {[%clk 0:00:40]} 31. Kg2 {[%clk 0:01:16]}  Re2 {[%clk 0:00:27]} 32. Qc6 {[%clk 0:01:08]}  Qd8 {[%clk 0:00:25]} 33. Qc4 {[%clk 0:01:08]}  Qg5+ {[%clk 0:00:22]} 34. Kf1 {[%clk 0:01:06]}  Re8 {[%clk 0:00:21]} 35. Rxa4 {[%clk 0:00:55]}  Qf5 {[%clk 0:00:19]} 36. Kg2 {[%clk 0:00:50]}  Qg5+ {[%clk 0:00:19]} 37. Kh2 {[%clk 0:00:47]}  Re1 {[%clk 0:00:19]} 38. Qc3+ {[%clk 0:00:47]}  Qe5+ {[%clk 0:00:16]} 39. Qxe5+ {[%clk 0:00:44]}  Rxe5 {[%clk 0:00:16]} 40. Rd4 {[%clk 0:00:44]}  Kf8 {[%clk 0:00:16]} 41. d6 {[%clk 0:00:44]}  Ke8 {[%clk 0:00:17]} 42. b4 {[%clk 0:00:44]}  Kd7 {[%clk 0:00:17]} 43. a4 {[%clk 0:00:44]}  Re2 {[%clk 0:00:17]} 44. Kg3 {[%clk 0:00:45]}  g5 {[%clk 0:00:17]} 45. h4 {[%clk 0:00:44]}  gxh4+ {[%clk 0:00:17]} 46. Kxh4 {[%clk 0:00:45]}  Rxf2 {[%clk 0:00:17]} 47. f4 {[%clk 0:00:46]}  Ra2 {[%clk 0:00:16]} 48. Kxh5 {[%clk 0:00:46]}  Rxa4 {[%clk 0:00:16]} 49. Kg5 {[%clk 0:00:46]}  Ra8 {[%clk 0:00:09]} 50. Kf6 {[%clk 0:00:46]}  Rf8 {[%clk 0:00:06]} 51. Kg7 {[%clk 0:00:46]}  Rb8 {[%clk 0:00:07]} 52. Kxf7 {[%clk 0:00:46]}  Rb5 {[%clk 0:00:08]} 53. Kf6 {[%clk 0:00:46]}  Rb8 {[%clk 0:00:09]} 54. f5 {[%clk 0:00:46]}  Rf8+ {[%clk 0:00:10]} 55. Kg6 {[%clk 0:00:46]}  Rg8+ {[%clk 0:00:10]} 56. Kf7 {[%clk 0:00:46]}  Rg1 {[%clk 0:00:11]} 57. f6 {[%clk 0:00:46]}  Rf1 {[%clk 0:00:12]} 58. b5 {[%clk 0:00:44]}  Rb1 {[%clk 0:00:11]} 59. Rd5 {[%clk 0:00:44]}  Rf1 {[%clk 0:00:09]} 60. Kg6 {[%clk 0:00:44]}  Rg1+ {[%clk 0:00:09]} 61. Rg5 {[%clk 0:00:45]}  Rf1 {[%clk 0:00:09]} 62. f7 {[%clk 0:00:43]}  Kxd6 {[%clk 0:00:08]} 63. Rf5 {[%clk 0:00:43]}  Rg1+ {[%clk 0:00:06]} 64. Kh5 {[%clk 0:00:43]}  Rh1+ {[%clk 0:00:06]} 65. Kg4 {[%clk 0:00:43]}  Rg1+ {[%clk 0:00:07]} 66. Kh3 {[%clk 0:00:44]}  Rh1+ {[%clk 0:00:08]} 67. Kg2 {[%clk 0:00:44]}  Rh8 {[%clk 0:00:08]} 68. f8=Q+ {[%clk 0:00:44]}  Rxf8 {[%clk 0:00:09]} 69. Rxf8 {[%clk 0:00:45]}  Kc5 {[%clk 0:00:10]} 70. Rf5+ {[%clk 0:00:46]}  Kb6 {[%clk 0:00:10]} 71. Kf2 {[%clk 0:00:47]}  Ka5 {[%clk 0:00:11]} 72. Ke3 {[%clk 0:00:47]}  Kb6 {[%clk 0:00:11]} 73. Kd4 {[%clk 0:00:44]}  Ka5 {[%clk 0:00:12]} 1-0